[Event "67th Mexican-ch Open 2022"]
[Site "Chihuahua"]
[Date "2022.04.15"]
[Round "5.22"]
[White "Hernandez Jimenez, Alexander Andres"]
[Black "Gonzalez Cruz, Ian Josue"]
[Result "1-0"]
[ECO "C54"]
[WhiteElo "2167"]
[BlackElo "1814"]
[Annotator "TA"]
[PlyCount "97"]
[EventDate "2022.04.12"]
[EventType "swiss"]
[EventCountry "MEX"]
[SourceTitle "playchess.com"]
[Source "ChessBase"]
[SourceQuality "1"]
[TimeControl "5400+30"]

{[%evp 12,97,37,-17,-29,-33,-16,-34,-17,-18,-14,-25,-12,-20,-28,-38,-6,-57,0,-54,-17,-33,-35,-25,0,-45,0,0,0,0,0,-266,0,5,40,47,105,106,115,109,125,142,136,89,141,73,191,54,156,154,345,52,50,42,504,504,504,490,400,476,348,348,29975,29976,29973,29968,29984,29985,29987,29988,29988,29988,29987,29986,29986,29987,29987,29988,29990,29989,29990,29991,29991,29991,29991,29992,29992,29993]} 1. e4 {[%emt 0:01:02]} e5 {[%emt 0:00:05]} 2. Nf3 {[%emt 0:00:29]} Nc6 {[%emt 0:00:06]} 3. Bc4 {[%emt 0:00:28]} Bc5 {[%emt 0:00:11]} 4. d3 {[%emt 0:00:30]} h6 {[%emt 0:00:11]} 5. c3 {[%emt 0:00:13]} Nf6 {[%emt 0:00:31]} 6. b4 {[%emt 0:12:12]} Bb6 {[%emt 0:10:42]} 7. b5 {[%emt 0:00:51]} ({Better is} 7. a4 $14 a6 8. O-O (8. a5 Ba7 $11)) 7... Na5 $1 $11 {[%emt 0:00:06] C54: Giuoco Piano: 4 c3 Nf6, main lines with 5 d4 and 5 d3.} 8. Nxe5 {[%emt 0:00:08]} O-O {[%emt 0:00:07]} 9. Nxf7 {[%emt 0:10:22]} Rxf7 {[%emt 0:04:31] Black is slightly better.} 10. Bxf7+ {[%emt 0:00:43]} Kxf7 {[%emt 0:00:19]} 11. O-O {[%emt 0:01:00]} d6 {[%emt 0:00:51][%mdl 1024] Black has compensation.} 12. Nd2 {[%emt 0:10:03]} Bg4 {[%emt 0:04:32] [#]} 13. Qe1 $146 {[%emt 0:00:19]} ({Predecessor:} 13. Qc2 Qd7 14. a4 Re8 15. Nb3 Kf8 16. Nxa5 Bxa5 17. Bb2 d5 18. f3 Bh5 19. c4 dxc4 20. dxc4 {1-0 (30) Moldenhauer,L (1592)-Pikki,D (1482) Playchess.com INT 2020}) 13... Qe8 {[%emt 0:01:06]} 14. h3 {[%emt 0:01:21]} (14. a4 $11) 14... Bh5 {[%emt 0:01:26]} ({Black should try} 14... Bd7 $15) 15. Rb1 {[%emt 0:13:30]} (15. a4 $11) 15... Qe6 {[%emt 0:10:41]} 16. Nb3 {[%emt 0:05:14]} Nxb3 {[%emt 0:01:10]} 17. Rxb3 {[%emt 0:01:21][%cal Bb1b3,Bb3a3,Ba3a8][%mdl 32]} Re8 {[%emt 0:02:29] ...d5 is the strong threat.} 18. Be3 {[%emt 0:02:28]} Kg8 {[%emt 0:07:29]} (18... d5 $5 {[%cal Rd5e4]}) 19. Bxb6 {[%emt 0:00:22]} axb6 {[%emt 0:00:12]} 20. f4 {[%emt 0:05:38][%cal Bf2f4,Bf4f5][%mdl 32]} Nd7 {[%emt 0:00:36]} 21. Qh4 $2 {[%emt 0:02:28][%mdl 8192]} (21. Ra3 $11) 21... Bf7 $2 {[%emt 0:00:09]} (21... Be2 $19 22. Re1 Bxd3) 22. Ra3 {[%emt 0:00:33]} d5 {[%emt 0:03:48]} 23. e5 {[%emt 0:00:32]} Nc5 {[%emt 0:00:37]} (23... Bg6 $14 24. d4 Nf8) 24. d4 $1 $16 {[%emt 0:02:42]} Ne4 {[%emt 0:04:06]} 25. f5 $36 {[%emt 0:00:08][%mdl 2048] Inhibits Bg6. White is in control.} Qe7 {[%emt 0:00:14]} 26. Qxe7 {[%emt 0:00:16]} Rxe7 {[%emt 0:00:08]} 27. Ra8+ {[%emt 0:09:57]} (27. g4 $142) 27... Kh7 {[%emt 0:01:59]} (27... Re8 $142 28. Ra7 Rb8) 28. Rf3 {[%emt 0:02:00]} (28. Rb8 $142) 28... h5 {[%emt 0:07:46]} (28... Re8 $16 29. Ra7 (29. Rxe8 Bxe8 30. a4 c6 $11) 29... Rb8) 29. g4 {[%emt 0:00:07]} ({White should play} 29. Rf8 $18) 29... hxg4 {[%emt 0:07:19]} (29... Re8 $1 $14 30. Rxe8 Bxe8) 30. hxg4 {[%emt 0:00:02] Threatening mate with Rh3+.} Kh6 $2 {[%emt 0:00:08]} (30... Re8 $16 31. Ra7 Rb8 32. Rh3+ Kg8) 31. Kg2 $2 {[%emt 0:05:09]} (31. Rh8+ $1 $18 Kg5 32. Rh7 (32. e6 Be8 $17)) 31... Kg5 $14 {[%emt 0:00:54]} 32. Rh8 {[%emt 0:01:54] aiming for Rh7.} Kxg4 $2 {[%emt 0:03:54][%mdl 8192] White leaves nothing to chance now.} (32... Re8 $1 $14 33. Rh7 Rg8) 33. Rh7 $18 {[%emt 0:00:06]} Bg8 {[%emt 0:03:06] [#]} 34. f6 $1 {[%emt 0:00:24][%mdl 512]} Nxf6 {[%emt 0:09:18] [#]} (34... Bxh7 35. fxe7) 35. exf6 {[%emt 0:04:53][%mdl 4096] Endgame KRR-KRB} Re2+ {[%emt 0:00:09]} 36. Rf2 {[%emt 0:00:01]} ({Inferior is} 36. Kf1 Kxf3 37. Rxg7 {[#]} (37. Rh3+ $2 Kg4 $19) 37... Rxa2 $1 $15) 36... Rxf2+ $2 {[%emt 0:07:56]} (36... Bxh7 $18 37. Rxe2 gxf6) 37. Kxf2 {[%emt 0:00:07] White mates.} Bxh7 {[%emt 0:00:05] KB-KP} 38. f7 {[%emt 0:00:02]} Bd3 {[%emt 0:00:15]} 39. f8=Q {[%emt 0:00:06]} Bxb5 {[%emt 0:00:08]} 40. Qxg7+ {[%emt 0:00:03]} Kf5 {[%emt 0:00:24]} 41. Qxc7 {[%emt 0:00:11]} Bc6 {[%emt 0:00:14]} 42. Qxb6 {[%emt 0:00:25]} Ke4 {[%emt 0:00:06]} 43. Ke2 {[%emt 0:00:08]} Kf5 {[%emt 0:00:20]} 44. Ke3 {[%emt 0:00:11]} Kg4 {[%emt 0:00:13]} 45. Qd8 {[%emt 0:00:05]} Kf5 {[%emt 0:00:17]} 46. Qe7 {[%emt 0:00:04]} Kg4 {[%emt 0:00:33]} 47. Qg7+ {[%emt 0:00:07]} Kf5 {[%emt 0:00:08]} 48. Qe5+ {[%emt 0:00:02]} Kg6 {[%emt 0:00:17]} 49. Kf4 {[%emt 0:00:04] Weighted Error Value: White=0.43/Black=0.49} 1-0

[Event "67th Mexican-ch Open 2022"]
[Site "Chihuahua"]
[Date "2022.04.15"]
[Round "5.23"]
[White "Kowalski Davila, Emilio Luis"]
[Black "Avila Bautista, Roberto Al"]
[Result "0-1"]
[ECO "A73"]
[WhiteElo "1735"]
[BlackElo "2090"]
[Annotator "TA"]
[PlyCount "156"]
[EventDate "2022.04.12"]
[EventType "swiss"]
[EventCountry "MEX"]
[SourceTitle "playchess.com"]
[Source "ChessBase"]
[SourceQuality "1"]
[TimeControl "5400+30"]

{[%evp 18,156,40,31,36,43,43,46,45,32,39,34,47,56,44,43,69,58,72,46,110,108,136,64,60,68,93,86,114,103,154,115,159,121,188,156,167,151,193,170,181,137,125,129,152,102,119,100,110,110,113,0,98,0,107,107,94,86,88,56,58,63,59,59,47,-53,7,14,0,-73,-74,-72,-68,-78,-75,-125,-107,-111,-131,-200,-196,-327,-329,-347,-327,-329,-333,-357,-339,-299,-113,-202,-172,-229,-171,-119,0,-237,-247,-443,-449,-437,-405,-616,-615,-595,-552,-733,-560,-660,-557,-462,-382,-527,-396,-364,-291,-293,-276,-372,-314,-621,-569,-672,-510,-819,-803,-770,-687,-1393,-1327,-1620,-1343,-29976,-29979,-29979,-29980,-29980,-29981,-29989,-2277]} 1. d4 {[%emt 0:00:30]} Nf6 {[%emt 0:03:51]} 2. c4 {[%emt 0:00:12]} c5 {[%emt 0:00:22]} 3. d5 {[%emt 0:00:09]} e6 {[%emt 0:00:06]} 4. Nc3 {[%emt 0:00:13]} exd5 {[%emt 0:00:08]} 5. cxd5 {[%emt 0:00:09]} d6 {[%emt 0:00:10]} 6. e4 {[%emt 0:00:13]} g6 {[%emt 0:00:05]} 7. Nf3 {[%emt 0:00:07]} Bg7 {[%emt 0:00:08]} 8. Be2 {[%emt 0:00:07]} O-O {[%emt 0:00:15]} 9. O-O {[%emt 0:00:11] 9.Be3 is the fancy move.} Bg4 {[%emt 0:00:07]} 10. Bf4 {[%emt 0:00:13]} Qe7 {[%emt 0:08:05] A73: Modern Benoni: Classical: Unusual Black 9th moves.} 11. Nd2 {[%emt 0:02:52]} Bxe2 {[%emt 0:00:41]} 12. Qxe2 {[%emt 0:00:09]} ({Much weaker is} 12. Nxe2 Nxe4 13. Re1 (13. Nxe4 Qxe4 14. Re1 Qc4 $15) 13... Nxd2 $11) 12... Nh5 {[%emt 0:01:09] White is slightly better.} 13. Be3 {[%emt 0:00:31]} Nd7 {[%emt 0:00:47]} 14. g4 {[%emt 0:02:30]} Nhf6 {[%emt 0:07:03][%cal Ob7b5]} 15. Bg5 {[%emt 0:03:59][%cal Be3g5,Bg5h4,Bh4g3][%mdl 32]} h6 {[%emt 0:05:30]} 16. Bh4 {[%emt 0:00:18] [#]} g5 $146 {[%emt 0:17:53]} ({Predecessor:} 16... Rfe8 17. Kh1 Ne5 18. f3 a6 19. a4 Rac8 20. f4 Ned7 21. Rae1 Nb6 {1-0 (31) Ograbek,G-Wydrowski,L Poland 1991}) 17. Bg3 {[%emt 0:00:13]} Ne5 {[%emt 0:02:59]} 18. h3 {[%emt 0:05:31]} Ng6 {[%emt 0:02:17]} (18... Rae8 $14) 19. Nc4 $16 {[%emt 0:03:13]} Rad8 {[%emt 0:02:17][%cal Ob7b5]} 20. f3 {[%emt 0:03:48]} (20. Ne3 $16) 20... Ne8 $1 $14 {[%emt 0:01:37][%cal Bf6e8,Be8c7,Bc7a8,Ba8b6][%mdl 32]} 21. Qd2 {[%emt 0:04:41]} Nc7 {[%emt 0:07:53]} 22. a4 {[%emt 0:01:08]} a6 {[%emt 0:07:39]} 23. Kg2 {[%emt 0:05:46]} Rfe8 {[%emt 0:00:53]} (23... Be5 $142) 24. Ra2 {[%emt 0:13:19]} Na8 {[%emt 0:02:40]} 25. Rb1 {[%emt 0:04:21]} Qc7 {[%emt 0:02:03]} (25... Qf6 $16 {keeps fighting.} 26. Ra3 Nh4+ 27. Bxh4 gxh4) 26. b3 {[%emt 0:03:57]} Nb6 {[%emt 0:26:52]} 27. Ne3 $1 {[%emt 0:00:20]} Nd7 {[%emt 0:00:00]} 28. Nf5 {[%emt 0:01:59]} Nde5 {[%emt 0:00:00]} 29. Rc1 {[%emt 0:04:05]} Qa5 {[%emt 0:00:00]} 30. Qc2 {[%emt 0:03:26]} Bf8 {[%emt 0:00:00]} 31. Rca1 {[%emt 0:03:21]} (31. Nd1 $142) 31... Rc8 {[%emt 0:00:00]} 32. Rb1 {[%emt 0:02:46]} Qc7 {[%emt 0:00:00]} 33. Qd2 {[%emt 0:03:45]} Qa5 {[%emt 0:00:00]} 34. Qc2 {[%emt 0:00:21]} ({White should try} 34. h4 $16) 34... Rb8 {[%emt 0:00:00]} (34... Qc7 $1 $11) 35. Rba1 {[%emt 0:01:14]} ({Better is} 35. Ne2 $16) 35... c4 {[%emt 0:00:00]} (35... Rbc8 $1 $11) 36. Ne2 $16 {[%emt 0:02:37]} Rec8 {[%emt 0:00:00]} 37. Be1 {[%emt 0:01:14]} Qb6 {[%emt 0:00:00]} 38. b4 {[%emt 0:00:36]} Nd3 {[%emt 0:00:00]} 39. Qc3 {[%emt 0:01:28]} Nxe1+ {[%emt 0:00:00]} 40. Rxe1 {[%emt 0:00:15]} Nh4+ {[%emt 0:00:00]} 41. Kg3 {[%emt 0:03:06]} ({White should play} 41. Kf1 $14) 41... Qd8 {[%emt 0:00:00]} (41... Nxf5+ $15 42. exf5 Bg7) 42. Ned4 $11 {[%emt 0:01:24]} Qf6 {[%emt 0:00:00]} 43. Ne2 {[%emt 0:00:35]} (43. Rc2 $11 {remains equal.}) 43... Nxf5+ $17 {[%emt 0:00:00]} 44. gxf5 {[%emt 0:00:08]} Bg7 {[%emt 0:00:00]} 45. Qxf6 {[%emt 0:00:07]} Bxf6 {[%emt 0:00:00]} 46. Rc1 {[%emt 0:00:45]} (46. Rb1 $142) 46... c3 {[%emt 0:00:00]} 47. Rac2 {[%emt 0:02:31]} Rc4 {[%emt 0:00:00]} 48. b5 {[%emt 0:00:37] [#]} (48. Kf2 $17) 48... Rbc8 $1 $19 {[%emt 0:00:02]} ({And not} 48... Rxa4 49. Nxc3 Be5+ 50. Kf2 $15) 49. Ra1 {[%emt 0:02:20]} (49. bxa6 $142 bxa6 50. Kf2) 49... axb5 {[%emt 0:00:32]} 50. axb5 {[%emt 0:00:03]} Rb4 {[%emt 0:00:09] Against Rb1} 51. Kf2 {[%emt 0:01:52]} Rxb5 {[%emt 0:00:38]} 52. Ke3 {[%emt 0:00:16]} Be5 {[%emt 0:04:33]} 53. Kd3 {[%emt 0:00:29]} Rbc5 $2 {[%emt 0:00:41]} (53... Rb2 $19 {is more deadly. Hoping for ...b5.} 54. Rg1 Kh7) 54. Rac1 {[%emt 0:04:21]} (54. Ra7 $17 {was called for.}) 54... b5 {[%emt 0:00:29]} 55. Nxc3 {[%emt 0:02:48]} (55. Rb1 {is the only way for White.}) 55... Bf4 {[%emt 0:00:42]} 56. Rb1 {[%emt 0:00:15]} Be5 {[%emt 0:01:37]} (56... b4 $17 57. Rxb4 Be5) 57. Rbc1 {[%emt 0:00:15][%cal Oc3b5] [#]} Ra8 $1 {[%emt 0:00:34]} 58. Ne2 $2 {[%emt 0:00:59]} (58. Nb1 Ra1 59. Rh1) 58... Ra3+ {[%emt 0:00:12]} 59. Kd2 {[%emt 0:00:29]} Rxc2+ {[%emt 0:00:08]} 60. Rxc2 {[%emt 0:01:02]} (60. Kxc2 $142 Rxf3 61. Ng1) 60... Rxf3 {[%emt 0:00:13][%mdl 4096] Endgame KRB-KRN} 61. Rc8+ {[%emt 0:00:38]} Kg7 {[%emt 0:00:03]} 62. Rb8 {[%emt 0:00:58]} Rb3 {[%emt 0:00:23]} 63. Kc2 {[%emt 0:00:39]} Rb2+ {[%emt 0:00:28]} 64. Kd3 {[%emt 0:00:07]} b4 {[%emt 0:00:11] Strongly threatening ...Rb3+.} 65. Ng1 {[%emt 0:00:37]} Rg2 {[%emt 0:01:44]} 66. Nf3 {[%emt 0:00:27]} Rg3 {[%emt 0:00:38]} 67. Ke2 {[%emt 0:00:05]} Kf6 {[%emt 0:01:56]} ({Weaker is} 67... Rxh3 68. Nxe5 Rh2+ 69. Ke3 dxe5 70. d6 Rh3+ 71. Ke2 Rh2+ 72. Ke3 Rh3+ 73. Ke2 Rh2+ 74. Ke3 $11) 68. Rxb4 {[%emt 0:00:28]} Rxh3 {[%emt 0:00:21]} 69. Rb7 $2 {[%emt 0:00:59]} (69. Nxe5 Kxe5 70. Rb7) 69... Bf4 {[%emt 0:00:22]} 70. Kf2 {[%emt 0:01:06]} g4 {[%emt 0:00:12]} 71. Ng1 {[%emt 0:02:53]} (71. Ne1 $142) 71... Ra3 {[%emt 0:01:20] And now ...Be3+ would win.} 72. Ne2 {[%emt 0:00:18]} Be5 {[%emt 0:00:21]} 73. Nc1 {[%emt 0:03:04]} h5 {[%emt 0:00:21][%cal Bh6h5,Bh5h4,Bh4h3,Bh3h2][%mdl 32]} 74. Rb3 {[%emt 0:01:08]} Ra4 {[%emt 0:00:22] White must now prevent ...h4.} 75. Ke3 {[%emt 0:00:21]} h4 {[%emt 0:00:44] Black mates.} 76. Ne2 {[%emt 0:01:08]} h3 {[%emt 0:00:55]} 77. Rb8 {[%emt 0:02:04]} h2 {[%emt 0:00:46]} 78. Rh8 {[%emt 0:00:30]} Ra1 {[%emt 0:00:17] What a bad dream for White.  Weighted Error Value: White=0.36/Black=0.23 (precise)} (78... Ra3+ $142 79. Kd2 Rh3 80. Rxh3 gxh3 81. Kd3 h1=Q 82. Nd4 Qd1+ 83. Kc4 Qa4+ 84. Kc3 Qxd4+ 85. Kc2 h2 86. Kb3 h1=Q 87. Ka3 Qh3+ 88. Ka2 Qb2#) 0-1

[Event "67th Mexican-ch Open 2022"]
[Site "Chihuahua"]
[Date "2022.04.15"]
[Round "5.24"]
[White "Mejia Nunez, Haziel"]
[Black "Jorajuria Mendoza, Algol"]
[Result "0-1"]
[ECO "B33"]
[WhiteElo "1611"]
[BlackElo "2006"]
[Annotator "NA RC"]
[PlyCount "54"]
[EventDate "2022.04.12"]
[EventType "swiss"]
[EventCountry "MEX"]
[SourceTitle "playchess.com"]
[Source "ChessBase"]
[SourceQuality "1"]
[TimeControl "5400+30"]

1. e4 {[%emt 0:00:03]} c5 {[%emt 0:00:05]} 2. Nf3 {[%emt 0:00:07]} Nc6 {[%emt 0:00:04]} 3. d4 {[%emt 0:00:04]} cxd4 {[%emt 0:00:04]} 4. Nxd4 {[%emt 0:00:05]} Nf6 {[%emt 0:00:03]} 5. Nc3 {[%emt 0:00:13]} e5 {[%emt 0:00:06]} 6. Ndb5 {[%emt 0:02:21]} d6 {[%emt 0:00:07]} 7. Bg5 {[%emt 0:00:11]} a6 {[%emt 0:00:08]} 8. Bxf6 {[%emt 0:00:30]} gxf6 {[%emt 0:00:07]} 9. Na3 {[%emt 0:00:06]} b5 {[%emt 0:00:04]} 10. Nd5 {[%emt 0:01:45]} Bg7 {[%emt 0:00:38]} 11. Be2 {[%emt 0:03:31]} f5 {[%emt 0:03:27]} 12. Bf3 {[%emt 0:01:41]} O-O {[%emt 0:08:50]} 13. O-O {[%emt 0:04:09]} Nd4 {[%emt 1:23:17]} 14. c3 {[%emt 0:10:18]} Nxf3+ {[%emt 0:00:00]} 15. Qxf3 {[%emt 0:00:16]} fxe4 {[%emt 0:00:00]} 16. Qxe4 {[%emt 0:00:29]} Ra7 {[%emt 0:00:00]} 17. Rad1 {[%emt 0:16:17]} f5 {[%emt 0:00:00]} 18. Qe3 {[%emt 0:01:11]} Raf7 {[%emt 0:00:00]} 19. f4 {[%emt 0:00:07]} Bb7 {[%emt 0:00:00]} 20. Nc2 {[%emt 0:07:00]} Kh8 {[%emt 0:00:00]} 21. Qh3 {[%emt 0:06:13]} exf4 {[%emt 0:00:00]} 22. Nxf4 {[%emt 0:00:16]} Rf6 {[%emt 0:00:00]} 23. Qg3 {[%emt 0:03:42]} Rh6 {[%emt 0:00:00]} 24. Rfe1 {[%emt 0:02:22]} Rg8 {[%emt 0:00:00]} 25. Qf2 {[%emt 0:03:13]} Be4 {[%emt 0:00:00]} 26. Nd4 {[%emt 0:10:34]} Qh4 {[%emt 0:00:00]} 27. Rf1 {[%emt 0:16:14]} Qxh2# {[%emt 0:07:00]} 0-1

[Event "67th Mexican-ch Open 2022"]
[Site "Chihuahua"]
[Date "2022.04.15"]
[Round "5.25"]
[White "Avila Fraire, Ameyalli"]
[Black "Guerrero Rodriguez, Alejandra"]
[Result "1/2-1/2"]
[ECO "B40"]
[WhiteElo "1955"]
[BlackElo "2019"]
[Annotator "TA"]
[PlyCount "141"]
[EventDate "2022.04.12"]
[EventType "swiss"]
[EventCountry "MEX"]
[SourceTitle "playchess.com"]
[Source "ChessBase"]
[SourceQuality "1"]
[TimeControl "5400+30"]

{[%evp 9,141,-4,51,33,114,105,102,86,95,30,93,100,114,116,108,88,242,268,259,21,19,14,10,8,29,-60,-46,-46,-46,-47,-47,-48,-49,-63,-35,-60,-58,-69,0,0,0,-24,0,0,0,0,0,0,0,0,0,-19,-16,-79,0,0,0,0,0,-31,-32,-118,-116,-321,-335,-324,-312,-337,-398,-413,-362,-470,-168,-466,-444,-544,-502,-582,-610,-587,-605,-576,-593,-617,-602,-511,-555,-547,-516,-1114,-1122,-993,-941,-751,-612,-496,-193,-193,-101,-4133,-3291,-1120,-147,-139,-39,-39,-39,-39,-39,-39,-39,-39,-39,-39,-39,-39,-39,-39,-39,-39,-8,-8,-8,-8,-8,-8,-8,-8,-8,-58,-58,-58,-58,-58]} 1. e4 {[%emt 0:06:23]} c5 {[%emt 0:01:59]} 2. Nf3 {[%emt 0:00:19]} e6 {[%emt 0:00:20]} 3. d4 {[%emt 0:00:09]} cxd4 {[%emt 0:00:07]} 4. Nxd4 {[%emt 0:00:06]} Qb6 {[%emt 0:00:08]} 5. Be3 {[%emt 0:00:39]} Bc5 {[%emt 0:08:12]} (5... Qxb2 $11 6. Nd2 a6) 6. Na3 $14 {[%emt 0:00:23] B40: Sicilian: 2...e6, Unusual lines.} a6 {[%emt 0:08:56]} (6... Qa5+ $14 7. Bd2 Qd8) 7. Nc4 $16 {[%emt 0:01:33] Active counter play!} Qc7 {[%emt 0:00:08]} 8. Qg4 {[%emt 0:01:20] White is better.} g6 {[%emt 0:03:54]} 9. Qg5 {[%emt 0:09:35] [#] Inhibits d5.} (9. e5 $16) 9... f6 $146 {[%emt 0:03:40]} (9... b5 $11 {remains equal.}) ({Predecessor:} 9... b5 10. Nd2 Be7 11. Qg3 Qxg3 12. hxg3 Bb7 13. a4 b4 14. Bd3 Nc6 15. Nc4 h5 16. Nxc6 dxc6 {1-0 (23) Poghosyan,T (1860)-Peter,A (1630) Oberhof 2012}) 10. Qg3 {[%emt 0:07:00]} Qxg3 {[%emt 0:01:47]} 11. hxg3 {[%emt 0:00:06][%cal Od4e6]} b5 {[%emt 0:11:30]} 12. Nd2 {[%emt 0:01:49][%cal Od4b5]} Nc6 $2 {[%emt 0:04:34] [#]} (12... d6 $16 {keeps fighting.}) 13. Nxb5 $1 $18 {[%emt 0:00:50][%mdl 512] Black must now prevent Nc7+.} Bxe3 {[%emt 0:01:11]} 14. Nd6+ $2 {[%emt 0:02:22]} ({White has to play} 14. Nc7+ $18 Kd8 15. Nxa8) 14... Ke7 $11 {[%emt 0:00:22] Strongly threatening ...Bxd2+.} 15. Nxc8+ {[%emt 0:00:17]} Rxc8 {[%emt 0:00:02]} 16. fxe3 {[%emt 0:00:11]} Nb4 {[%emt 0:00:09]} 17. Bd3 {[%emt 0:01:56]} ({White should try} 17. Rb1 $11) 17... Rxc2 {[%emt 0:01:19]} 18. Bxc2 {[%emt 0:00:27]} Nxc2+ {[%emt 0:00:02]} 19. Ke2 {[%emt 0:00:22]} Nxa1 {[%emt 0:00:05]} 20. Rxa1 $15 {[%emt 0:00:04][%mdl 4096] Endgame KRN-KRN} Nh6 {[%emt 0:00:06]} 21. Rc1 {[%emt 0:00:11]} Ng4 {[%emt 0:01:03]} (21... Rb8 $5 {[%cal Rb8b2]} 22. b3 Ng4 $15) 22. Rc7 {[%emt 0:00:31]} Rb8 {[%emt 0:00:11]} 23. b3 {[%emt 0:01:11]} Rb6 {[%emt 0:02:16]} (23... Ne5 $1 $15 24. Rc5 Nc6) 24. Nc4 $11 {[%emt 0:00:33]} Rc6 {[%emt 0:00:08]} 25. Ra7 {[%emt 0:02:57]} h5 {[%emt 0:05:22]} 26. a4 {[%emt 0:03:41]} Ne5 {[%emt 0:01:25]} 27. Nxe5 {[%emt 0:00:28]} fxe5 {[%emt 0:00:02] KR-KR} 28. Kd3 {[%emt 0:01:34] Inhibits Rc2.} Rd6+ {[%emt 0:00:47]} 29. Kc3 {[%emt 0:00:52]} Kf6 {[%emt 0:00:18]} 30. Ra8 {[%emt 0:00:47]} Rc6+ {[%emt 0:00:37]} 31. Kd3 {[%emt 0:00:17]} (31. Kb4 $11) 31... d5 {[%emt 0:00:41]} ({Better is} 31... Kg5 $1 $17) 32. exd5 {[%emt 0:00:32]} exd5 {[%emt 0:00:17]} 33. Rd8 {[%emt 0:00:27]} Ke6 {[%emt 0:01:19]} 34. Rg8 {[%emt 0:01:16]} Kf5 {[%emt 0:00:22]} 35. Rd8 {[%emt 0:00:21]} (35. Rb8 $15) 35... Rb6 $17 {[%emt 0:01:15]} 36. Kc3 {[%emt 0:02:34]} (36. Rxd5 $17 Rxb3+ 37. Ke2) 36... Ke4 $19 {[%emt 0:01:21]} 37. Re8 {[%emt 0:00:18]} Rc6+ {[%emt 0:01:25]} (37... Kxe3 38. Rxe5+ Kf2 39. Rg5 $11) 38. Kd2 {[%emt 0:00:08]} Rf6 $1 {[%emt 0:00:06]} 39. b4 {[%emt 0:02:49]} Rf2+ {[%emt 0:00:18]} 40. Kc3 {[%emt 0:00:29]} Ra2 $2 {[%emt 0:00:56]} (40... Re2 41. b5 Rxe3+ 42. Kb2 axb5 43. axb5 Re2+ 44. Kb3 Re1) 41. Kb3 $2 {[%emt 0:07:55]} (41. a5 {is the only way for White.}) 41... Re2 $1 {[%emt 0:02:51]} 42. b5 {[%emt 0:01:06]} axb5 {[%emt 0:00:32]} 43. axb5 {[%emt 0:00:19]} Rxe3+ {[%emt 0:01:17]} 44. Kb2 {[%emt 0:00:41] [#]} Re2+ $1 {[%emt 0:05:16]} 45. Kc1 {[%emt 0:02:06]} Rf2 {[%emt 0:01:16]} (45... Rxg2 46. b6 $11) 46. b6 {[%emt 0:00:08]} Rf7 {[%emt 0:00:33]} 47. Kd2 {[%emt 0:07:30]} Rb7 {[%emt 0:01:45]} 48. Re6 {[%emt 0:00:20]} g5 {[%emt 0:00:08]} 49. Rf6 {[%emt 0:01:47]} (49. Kc2 $142 d4 50. Kd2) 49... Kd4 {[%emt 0:00:36]} 50. Rc6 {[%emt 0:01:01]} e4 {[%emt 0:01:25]} 51. Ke2 {[%emt 0:01:14]} Ke5 {[%emt 0:00:56] And now ...Kd4 would win.} 52. Rg6 {[%emt 0:01:42]} Kf5 $2 {[%emt 0:03:43]} (52... Rb8 53. Ke3 d4+ 54. Ke2 Kf5) 53. Rd6 {[%emt 0:02:15] [#]} Kg4 {[%emt 0:03:44]} ({Don't blunder} 53... Ke5 $2 54. Rc6 $19) (53... d4 $1 $19 {aiming for ...Kg4.} 54. Kf2 Ke5) 54. Rxd5 $2 {[%emt 0:06:18][%mdl 8192]} (54. Kf2 $17) 54... Rxb6 {[%emt 0:00:07]} 55. Re5 {[%emt 0:00:05]} Rb2+ $2 {[%emt 0:00:13]} (55... Rb3 $19 {[%cal Oe4e3] Threatens to win with ...e3!} 56. Rxe4+ Kxg3) 56. Kf1 $17 {[%emt 0:00:25]} Rc2 {[%emt 0:06:17]} ({Not} 56... Kxg3 57. Rxg5+ Kh4 58. Rg8 $11) (56... Rb1+ $17 57. Kf2 Rb4) 57. Rxe4+ $15 {[%emt 0:03:44]} Kxg3 {[%emt 0:00:03]} 58. Re3+ {[%emt 0:00:11]} Kf4 {[%emt 0:01:20]} 59. Rf3+ {[%emt 0:00:10]} Kg4 {[%emt 0:00:20]} 60. Ra3 {[%emt 0:00:28]} Rc4 {[%emt 0:02:31]} 61. Kf2 {[%emt 0:00:35]} Rf4+ {[%emt 0:01:05]} 62. Kg1 {[%emt 0:00:47]} h4 {[%emt 0:00:07]} 63. Ra8 {[%emt 0:01:31]} Rc4 {[%emt 0:03:00]} 64. Rb8 $1 {[%emt 0:00:22]} h3 {[%emt 0:00:59]} 65. gxh3+ {[%emt 0:00:43]} Kxh3 {[%emt 0:00:08]} 66. Rb3+ {[%emt 0:00:21]} Kh4 {[%emt 0:00:08]} 67. Kh2 {[%emt 0:02:30]} Rc2+ {[%emt 0:00:25]} 68. Kg1 {[%emt 0:00:16]} g4 {[%emt 0:01:08][%cal Bg5g4,Bg4g3][%mdl 32]} 69. Rb1 {[%emt 0:02:18]} ({White should play} 69. Ra3 $11) 69... Kh3 {[%emt 0:02:06]} ({Much weaker is} 69... Rc3 70. Rb2 $11) 70. Rb3+ $1 {[%emt 0:00:50]} g3 {[%emt 0:00:42][%cal Rc2c1]} 71. Rb1 {[%emt 0:00:04] Prevents Rc1+. White used his chance.  Weighted Error Value: White=0.48/Black=0.44} 1/2-1/2